﻿Department family,Entity,Date,Expense type,Expense area,Supplier,Transaction number,Amount,VAT registration number
Dept of Health,MHRA,01/12/2021,Application Services and Maintenance,"Technology, Digital, Data & Delivery",Accenture (UK) Limited,3003526643,"85,484.52 ",788629066
Dept of Health,MHRA,01/12/2021,Software & Licences,"Technology, Digital, Data & Delivery",Acquia,SI-52595,"29,700.00 ",
Dept of Health,MHRA,01/12/2021,Assets Under Construction - Land & Buildings,Infrastructure & Operations,Commercial Services UK Ltd,INV-1229,"111,118.70 ",130597616
Dept of Health,MHRA,01/12/2021,Application Services and Maintenance,"Technology, Digital, Data & Delivery",Greenwood Campbell Ltd,I2658,"66,480.00 ",978404972
Dept of Health,MHRA,01/12/2021,Accommodation Rates,Infrastructure & Operations,Hertsmere Borough Council,Business Rates Bill: 2021/2022,"834,456.00 ",230640406
Dept of Health,MHRA,01/12/2021,Contracted Out Services Miscellaneous,Vigilance & Risk Management of Medicines,Red Ant Digital Ltd,INV-08779,"30,000.00 ",123388322
Dept of Health,MHRA,06/12/2021,Security,Infrastructure & Operations,CIS Security Limited,46518,"52,816.88 ",206193092
Dept of Health,MHRA,06/12/2021,Lab Equipment Repairs and Maintenance,Infrastructure & Operations,Thermo Electron Ltd,9112151900,"-33,181.49 ",827900029
Dept of Health,MHRA,06/12/2021,Lab Equipment Repairs and Maintenance,Infrastructure & Operations,Thermo Electron Ltd,9112151902,"-96,678.97 ",827900029
Dept of Health,MHRA,06/12/2021,Lab Equipment Repairs and Maintenance,Infrastructure & Operations,Thermo Electron Ltd,9112151907,"144,137.57 ",827900029
Dept of Health,MHRA,06/12/2021,Lab Equipment Repairs and Maintenance,Infrastructure & Operations,Thermo Electron Ltd,9112151908,"56,614.02 ",827900029
Dept of Health,MHRA,06/12/2021,Subcontracted Laboratory Services,Infectious Disease Diagnostics,UK Health Security Agency,5001268,"120,636.36 ",888849628
Dept of Health,MHRA,08/12/2021,Help desk and end user support,"Technology, Digital, Data & Delivery",Insight Networking Solutions,2100033096-21,"130,404.05 ",746075129
Dept of Health,MHRA,08/12/2021,Software & Licences,"Technology, Digital, Data & Delivery",Oracle Corporation UK Limited,460018953,"99,241.38 ",391313073
Dept of Health,MHRA,08/12/2021,Assets Under Construction - Land & Buildings,Infrastructure & Operations,Parker Air Conditioning Ltd,INV25729,"32,784.00 ",506700965
Dept of Health,MHRA,09/12/2021,Contracted Out Services Miscellaneous,Vigilance & Risk Management of Medicines,Commonwealth Informatics Inc,GBP98,"31,604.06 ",
Dept of Health,MHRA,09/12/2021,Application Services and Maintenance,"Technology, Digital, Data & Delivery",Insife ApS,369,"244,040.33 ",
Dept of Health,MHRA,13/12/2021,Gas,Infrastructure & Operations,Corona Energy Retail 4 Ltd,16624965,"42,866.87 ",577704800
Dept of Health,MHRA,13/12/2021,Contracted Out Services Miscellaneous,"Technology, Digital, Data & Delivery",Credera Limited,INV006877,"194,870.26 ",283541886
Dept of Health,MHRA,13/12/2021,"Service, Integration & Management - Enterprise Architecture","Technology, Digital, Data & Delivery",Ernst & Young LLP,GB01G000254960,"26,587.20 ",773831408
Dept of Health,MHRA,13/12/2021,Accommodation Rates,Facilities & Estates,Government Property Agency,00000001/11159,"31,653.31 ",888801080
Dept of Health,MHRA,13/12/2021,Facilities Management & Portering,Facilities & Estates,Government Property Agency,00000001/11159,"29,476.80 ",888801080
Dept of Health,MHRA,13/12/2021,Infrastructure Services and Maintenance,Facilities & Estates,Government Property Agency,00000001/11159,"16,822.31 ",888801080
Dept of Health,MHRA,13/12/2021,Electricity,Facilities & Estates,Government Property Agency,00000001/11159,"8,612.31 ",888801080
Dept of Health,MHRA,13/12/2021,Hospitality,Facilities & Estates,Government Property Agency,00000001/11169,"-3,035.42 ",888801080
Dept of Health,MHRA,13/12/2021,Postage,Facilities & Estates,Government Property Agency,00000001/11169,"-6,604.22 ",888801080
Dept of Health,MHRA,13/12/2021,Electricity,Facilities & Estates,Government Property Agency,00000001/11169,"-8,612.31 ",888801080
Dept of Health,MHRA,13/12/2021,Infrastructure Services and Maintenance,Facilities & Estates,Government Property Agency,00000001/11169,"-16,822.31 ",888801080
Dept of Health,MHRA,13/12/2021,Accommodation Rates,Facilities & Estates,Government Property Agency,00000001/11169,"-31,653.31 ",888801080
Dept of Health,MHRA,13/12/2021,Facilities Management & Portering,Facilities & Estates,Government Property Agency,00000001/11169,"-35,545.25 ",888801080
Dept of Health,MHRA,13/12/2021,Accommodation Rent,Facilities & Estates,Government Property Agency,00000001/13495,"465,707.65 ",888801080
Dept of Health,MHRA,13/12/2021,Facilities Management & Portering,Facilities & Estates,Government Property Agency,00000001/13495,"188,547.46 ",888801080
Dept of Health,MHRA,13/12/2021,Accommodation Rates,Facilities & Estates,Government Property Agency,00000001/13495,"159,129.44 ",888801080
Dept of Health,MHRA,13/12/2021,Accommodation Service Charge,Facilities & Estates,Government Property Agency,00000001/13495,"111,927.40 ",888801080
Dept of Health,MHRA,13/12/2021,Electricity,Facilities & Estates,Government Property Agency,00000001/13495,"47,678.98 ",888801080
Dept of Health,MHRA,13/12/2021,Security,Facilities & Estates,Government Property Agency,00000001/13495,"43,963.25 ",888801080
Dept of Health,MHRA,13/12/2021,Infrastructure Services and Maintenance,Facilities & Estates,Government Property Agency,00000001/13495,"24,454.67 ",888801080
Dept of Health,MHRA,15/12/2021,Contracted Out Services Miscellaneous,Transformation,Ernst & Young LLP,GB01G000253145,"615,296.92 ",773831408
Dept of Health,MHRA,15/12/2021,Contracted Out Services Miscellaneous,Transformation,Ernst & Young LLP,GB01G000253146,"615,296.92 ",773831408
Dept of Health,MHRA,15/12/2021,Contracted Out Services Miscellaneous,Transformation,Ernst & Young LLP,GB01G000253147,"615,296.92 ",773831408
Dept of Health,MHRA,15/12/2021,Chemicals and Reagents,Analytical & Biological Sciences,Illumina Cambridge Ltd,7021100733,"28,470.43 ",726035159
Dept of Health,MHRA,20/12/2021,Application Services and Maintenance,"Technology, Digital, Data & Delivery",Accenture (UK) Limited,3003530870,"146,846.99 ",788629066
Dept of Health,MHRA,20/12/2021,Application Services and Maintenance,"Technology, Digital, Data & Delivery",Accenture (UK) Limited,3003531723,"76,650.00 ",788629066
Dept of Health,MHRA,20/12/2021,Subcontracted Laboratory Services,Infectious Disease Diagnostics,CGTC Manufacturing Innovation Centre Limited,3074,"39,792.28 ",154421433
Dept of Health,MHRA,20/12/2021,Subcontracted Laboratory Services,Infectious Disease Diagnostics,CGTC Manufacturing Innovation Centre Limited,3075,"-47,750.74 ",154421433
Dept of Health,MHRA,20/12/2021,Subcontracted Laboratory Services,Infectious Disease Diagnostics,CGTC Manufacturing Innovation Centre Limited,3076,"-27,600.00 ",154421433
Dept of Health,MHRA,20/12/2021,Assets Under Construction - Contract Services,Infrastructure & Operations,Commercial Services UK Ltd,INV-1239,"71,451.67 ",130597616
Dept of Health,MHRA,20/12/2021,Assets Under Construction - Land & Buildings,Infrastructure & Operations,Mace Ltd,2101012343,"124,089.64 ",776468756
Dept of Health,MHRA,22/12/2021,Application Services and Maintenance,"Technology, Digital, Data & Delivery",Accenture (UK) Limited,3003530873,"85,594.57 ",788629066
Dept of Health,MHRA,22/12/2021,Application Services and Maintenance,"Technology, Digital, Data & Delivery",Accenture (UK) Limited,3003530877,"116,929.79 ",788629066
Dept of Health,MHRA,22/12/2021,Application Services and Maintenance,"Technology, Digital, Data & Delivery",Accenture (UK) Limited,3003530883,"99,759.13 ",788629066
Dept of Health,MHRA,22/12/2021,Application Services and Maintenance,"Technology, Digital, Data & Delivery",Accenture (UK) Limited,3003532231,"317,556.56 ",788629066
Dept of Health,MHRA,22/12/2021,Application Services and Maintenance,"Technology, Digital, Data & Delivery",Accenture (UK) Limited,3003532233,"26,499.98 ",788629066
Dept of Health,MHRA,22/12/2021,Assets Under Construction - Land & Buildings,Infrastructure & Operations,Airco Refrigeration & Air Conditioning Ltd,112693,"49,460.33 ",698272676
Dept of Health,MHRA,22/12/2021,Assets Under Construction - Land & Buildings,Infrastructure & Operations,Airco Refrigeration & Air Conditioning Ltd,112694,"35,756.66 ",698272676
Dept of Health,MHRA,22/12/2021,Assets Under Construction - Plant & Equipment,Infrastructure & Operations,Labman Automation Limited,5585,"230,880.00 ",602099169
Dept of Health,MHRA,22/12/2021,Software & Licences,"Technology, Digital, Data & Delivery",NSC Global Ltd,SI-UK-146319,"26,774.74 ",645777591
Dept of Health,MHRA,22/12/2021,Assets Under Construction - Land & Buildings,Infrastructure & Operations,RJ Power Networks Ltd,IN2922,"35,810.64 ",262311047
Dept of Health,MHRA,29/12/2021,Electricity,Infrastructure & Operations,EDF Energy,11018309,"-90,767.60 ",523041202
Dept of Health,MHRA,29/12/2021,Electricity,Infrastructure & Operations,EDF Energy,11018343,"89,998.71 ",523041202
Dept of Health,MHRA,29/12/2021,Electricity,Infrastructure & Operations,EDF Energy,11064323,"85,440.11 ",523041202
